bitfinex/quotes_SOLUSD_20241202
["timestamp","ask_amount","ask_price","bid_price","bid_amount"]
[1733135979504,5.0,225.05,224.98,4.432]
[1733135979884,5.0,225.05,224.98,17.45104572]
[1733135980087,5.0,225.05,224.86,70.0]
[1733135980088,5.0,225.03,224.86,70.0]
[1733135980401,10.0,225.01,224.93,13.01904572]
[1733135980987,5.0,225.01,224.94,13.01904572]
[1733135981183,5.0,225.03,224.96,13.01904572]
[1733135981512,23.776884,225.03,225.0,13.01904572]
[1733135981715,23.776884,225.03,225.01,13.01904572]
[1733135982415,10.0,225.07,225.01,13.01904572]
[1733135982789,10.0,225.07,225.01,4.432]
[1733135983212,23.776884,225.04,225.01,4.432]
[1733135983517,23.776884,225.04,224.99,13.01904572]
[1733135983889,10.0,225.07,224.99,13.01904572]
[1733135984095,23.776884,225.06,224.99,13.01904572]
[1733135984297,5.0,225.05,224.99,13.01904572]
[1733135984588,5.0,225.05,224.98,13.01904572]
[1733135984907,5.0,225.05,224.98,17.45104572]
[1733135985314,23.776884,225.06,225.0,13.01904572]
[1733135985510,5.0,225.05,225.0,13.01904572]
[1733135985704,5.0,225.05,224.96,4.432]
[1733135985907,5.0,225.03,224.98,4.432]
[1733135986118,10.0,225.03,224.98,17.45104572]
[1733135986317,10.0,225.03,224.97,1.01600848]
[1733135986503,5.0,225.01,224.95,17.45104572]
[1733135987223,6.1108,225.05,224.99,13.01904572]
[1733135987513,6.1108,225.05,225.0,13.01904572]
[1733135987514,5.0,225.05,225.0,13.01904572]
[1733135987712,10.0,225.05,224.98,4.432]
[1733135987922,10.0,225.05,224.88,70.0]
[1733135987923,5.0,225.02,224.94,13.01904572]
[1733135988502,5.0,225.02,224.95,17.45104572]
[1733135989614,5.0,225.0,224.95,4.432]
[1733135990525,5.0,224.99,224.92,13.01904572]
[1733135990828,5.0,224.99,224.94,4.432]
[1733135991222,5.0,224.97,224.88,13.01904572]
[1733135991520,5.0,224.97,224.85,100.8014]
[1733135991521,5.0,224.97,224.89,13.01904572]
[1733135991699,5.0,224.97,224.9,4.432]
[1733135991898,5.0,224.97,224.91,4.432]
[1733135992093,5.0,224.98,224.91,17.45104572]
[1733135992293,5.0,224.97,224.91,4.432]
[1733135993318,5.0,224.96,224.92,4.432]
[1733135994119,5.0,224.94,224.88,4.432]
[1733135996827,1.1113,224.95,224.9,4.432]
[1733135997011,5.0,224.94,224.9,4.432]
[1733135997726,1.1113,224.95,224.9,17.45104572]
[1733135997922,5.0,224.94,224.9,17.45104572]
[1733135998506,1.1113,224.95,224.9,17.45104572]
[1733135998820,5.0,224.96,224.9,17.45104572]
[1733135999010,5.0,224.96,224.92,4.432]
[1733135999526,5.0,224.96,224.93,4.432]
[1733136000300,5.0,224.96,224.92,4.432]
[1733136001337,5.0,224.96,224.91,4.432]
[1733136001632,5.0,224.96,224.93,4.432]
[1733136001835,6.1112,224.98,224.93,4.432]
[1733136002845,5.0,224.99,224.94,17.45104572]
[1733136003008,5.0,225.01,224.94,4.432]
[1733136003009,1.1111,225.0,224.94,4.432]
[1733136003331,1.1111,225.0,224.91,13.01904572]
[1733136003332,5.0,224.95,224.91,4.432]
[1733136003705,5.0,224.95,224.88,4.432]
[1733136004105,5.0,224.93,224.88,4.432]
[1733136004721,5.0,224.93,224.87,4.432]
[1733136004905,11.1113,224.95,224.87,4.432]
[1733136005106,6.1115,224.93,224.87,4.432]
[1733136005407,6.1115,224.93,224.83,0.5320254]
[1733136005408,10.0,224.89,224.83,0.5320254]
[1733136006303,10.0,224.86,224.83,0.5320254]
[1733136007426,5.0,224.84,224.83,0.5320254]
[1733136007640,10.0,224.84,224.83,0.5320254]
[1733136008837,10.0,224.84,224.83,2.54e-05]
[1733136009014,42.86049,224.84,224.83,2.54e-05]
[1733136009333,62.875474,224.84,224.83,2.54e-05]
[1733136009531,63.98479275,224.84,224.83,2.54e-05]
[1733136010316,5.0,224.75,224.64,2.41798082]
[1733136010513,53.98479275,224.84,224.64,2.41798082]
[1733136010514,5.0,224.77,224.71,13.01904572]
[1733136010720,5.0,224.76,224.71,13.01904572]
[1733136010925,5.0,224.76,224.72,13.01904572]
[1733136012519,5.0,224.76,224.71,13.01904572]
[1733136013034,5.0,224.76,224.72,13.01904572]
[1733136013203,5.0,224.76,224.71,13.01904572]
[1733136013408,5.0,224.76,224.72,13.01904572]
[1733136013713,5.0,224.77,224.72,13.01904572]
[1733136014036,10.0,224.83,224.76,13.01904572]
[1733136014236,10.0,224.83,224.77,13.01904572]
[1733136014614,10.0,224.85,224.78,13.01904572]
[1733136014810,5.0,224.85,224.79,13.01904572]
[1733136016647,10.0,224.85,224.78,13.01904572]
[1733136016944,11.1118,224.85,224.77,13.01904572]
[1733136017143,11.1118,224.85,224.78,13.01904572]
[1733136017441,5.0,224.84,224.77,13.01904572]
[1733136018053,5.0,224.8,224.74,13.01904572]
[1733136018350,10.0,224.8,224.74,13.01904572]
[1733136018518,5.0,224.8,224.74,13.01904572]
[1733136018838,10.0,224.8,224.74,13.01904572]
[1733136019245,5.0,224.79,224.72,13.01904572]
[1733136020123,5.0,224.79,224.73,4.449]
[1733136020527,5.0,224.79,224.75,4.449]
[1733136020724,5.0,224.79,224.75,17.46804572]
[1733136021052,5.0,224.79,224.69,43.5577]
[1733136021226,5.0,224.79,224.75,13.01904572]
[1733136021423,5.0,224.81,224.75,13.01904572]
[1733136022130,5.0,224.81,224.76,4.449]
[1733136022448,5.0,224.81,224.77,4.449]
[1733136022646,5.0,224.81,224.76,13.01904572]
[1733136022647,5.0,224.79,224.69,43.5577]
[1733136022822,5.0,224.79,224.72,13.01904572]
[1733136023022,5.0,224.78,224.72,13.01904572]
[1733136023226,5.0,224.78,224.73,4.449]
[1733136023433,6.112,224.8,224.74,13.01904572]
[1733136023729,5.0,224.79,224.73,13.01904572]
[1733136024336,5.0,224.79,224.74,4.449]
[1733136025227,5.0,224.79,224.75,4.449]
[1733136025833,6.112,224.8,224.75,4.449]
[1733136026047,5.0,224.78,224.75,4.449]
[1733136026431,5.0,224.78,224.73,13.01904572]
[1733136026432,5.0,224.78,224.68,70.0]
[1733136026653,5.0,224.78,224.73,4.449]
[1733136027736,5.0,224.78,224.74,4.449]
[1733136028454,5.0,224.77,224.74,4.449]
[1733136028629,5.0,224.77,224.73,4.449]
[1733136028953,5.0,224.77,224.7,4.449]
[1733136029255,5.0,224.73,224.7,4.449]
[1733136029826,5.0,224.73,224.69,4.449]
[1733136030155,5.0,224.73,224.69,17.46804572]
[1733136030848,5.0,224.73,224.71,4.449]
[1733136032751,5.0,224.73,224.7,13.01904572]
[1733136032752,5.0,224.73,224.7,4.449]
[1733136033625,5.0,224.73,224.7,17.46804572]
[1733136033826,5.0,224.73,224.72,4.449]
[1733136034548,5.0,224.73,224.65,4.449]
[1733136034860,5.0,224.73,224.72,17.46804572]
[1733136035357,5.0,224.77,224.72,17.46804572]
[1733136035556,5.0,224.77,224.75,4.449]
[1733136036865,5.0,224.77,224.74,4.449]
[1733136037155,5.0,224.78,224.74,4.449]
[1733136037458,5.0,224.75,224.65,11.1282]
[1733136037658,5.0,224.75,224.71,8.36872509]
[1733136037956,5.0,224.74,224.71,4.449]
[1733136038157,5.0,224.73,224.71,4.449]
[1733136039055,5.0,224.73,224.7,4.449]
[1733136040558,5.0,224.71,224.65,4.449]
[1733136040736,5.0,224.74,224.64,2.41798082]
[1733136040737,5.0,224.73,224.69,4.449]
[1733136040938,5.0,224.71,224.69,12.81772509]
[1733136041660,5.0,224.71,224.69,4.449]
[1733136041864,5.0,224.73,224.69,4.449]
[1733136042069,5.0,224.71,224.7,4.449]
[1733136042762,5.0,224.73,224.7,4.449]
[1733136043143,5.0,224.73,224.72,4.449]
[1733136043554,5.0,224.76,224.72,8.36872509]
[1733136043764,5.0,224.74,224.73,8.36872509]
[1733136043956,5.0,224.77,224.74,4.449]
[1733136044161,5.0,224.75,224.74,4.449]
[1733136044961,5.0,224.77,224.74,4.449]
[1733136045170,5.0,224.75,224.74,4.449]
[1733136045760,5.0,224.75,224.73,4.449]
[1733136046651,5.0,224.77,224.73,4.449]
[1733136046874,5.0,224.74,224.73,4.449]
[1733136047873,5.0,224.77,224.73,4.449]
[1733136048048,5.0,224.74,224.72,8.36872509]
[1733136048247,5.0,224.74,224.73,4.449]
[1733136048684,5.0,224.77,224.73,4.449]
[1733136048869,5.0,224.74,224.73,4.449]
[1733136049758,5.0,224.74,224.72,8.36872509]
[1733136051983,5.0,224.74,224.73,12.81772509]
[1733136053588,5.0,224.77,224.73,12.81772509]
[1733136054092,5.0,224.79,224.76,8.36872509]
[1733136054279,5.0,224.79,224.69,70.0]
[1733136054280,5.0,224.79,224.77,8.36872509]
[1733136054594,5.0,224.79,224.76,8.36872509]
[1733136054794,5.0,224.79,224.69,70.0]
[1733136054970,5.0,224.79,224.75,8.36872509]
[1733136055171,10.0,224.79,224.74,8.36872509]
[1733136055671,10.0,224.79,224.75,8.36872509]
[1733136056291,5.0,224.79,224.76,8.36872509]
[1733136056683,5.0,224.79,224.75,8.36872509]
[1733136057388,10.0,224.79,224.74,8.36872509]
[1733136057567,10.0,224.79,224.75,8.36872509]
[1733136057895,5.0,224.79,224.75,8.36872509]
[1733136060965,5.0,224.79,224.71,45.5726]
[1733136060966,5.0,224.79,224.76,8.36872509]
[1733136061162,5.0,224.79,224.75,8.36872509]
[1733136061781,5.0,224.79,224.77,8.36872509]
[1733136062007,5.0,224.79,224.78,8.36872509]
[1733136062671,31.461,224.88,224.78,8.36872509]
[1733136062672,5.0,224.88,224.79,70.0]
[1733136062995,5.0,224.91,224.86,8.36872509]
[1733136063196,5.0,224.91,224.88,8.36872509]
[1733136063409,5.0,224.94,224.89,8.36872509]
[1733136063607,5.0,224.93,224.87,8.36872509]
[1733136063898,5.0,224.92,224.87,8.36872509]
[1733136064306,5.0,224.91,224.85,8.36872509]
[1733136064602,5.0,224.9,224.87,8.36872509]
[1733136064806,5.0,224.92,224.89,8.36872509]
[1733136065008,10.0,224.92,224.87,8.36872509]
[1733136065178,5.0,224.9,224.85,8.36872509]
[1733136065377,5.0,224.9,224.86,8.36872509]
[1733136065580,5.0,224.9,224.87,4.449]
[1733136065780,5.0,224.9,224.88,4.449]
[1733136066474,5.0,224.9,224.88,12.81772509]
[1733136066679,5.0,224.91,224.88,12.81772509]
[1733136066897,5.0,224.91,224.9,4.449]
[1733136067487,5.0,224.93,224.9,4.449]
[1733136067699,5.0,224.91,224.9,4.449]
[1733136067872,5.0,224.91,224.89,4.449]
[1733136068078,1.10862681,225.0,224.82,46.53297454]
[1733136068079,5.0,224.88,224.82,44.1234]
[1733136068292,5.0,224.88,224.85,4.449]
[1733136068998,5.0,224.86,224.82,44.1234]
[1733136069190,10.0,224.86,224.83,4.449]
[1733136069389,10.0,224.84,224.77,30.8934]
[1733136069682,2.2224,224.99,224.81,8.36872509]
[1733136069683,5.0,224.82,224.81,8.36872509]
[1733136069885,5.0,224.84,224.81,8.36872509]
[1733136070111,5.0,224.84,224.83,8.36872509]
[1733136070313,5.0,224.86,224.84,4.449]
[1733136070534,5.0,224.83,224.76,2.32701713]
[1733136070691,5.0,224.82,224.79,8.36872509]
[1733136071015,5.0,224.82,224.8,8.36872509]
[1733136071205,5.0,224.82,224.81,4.449]
[1733136071386,5.0,224.82,224.8,8.36872509]
[1733136071787,5.0,224.82,224.73,33.47490036]
[1733136072051,5.0,224.8,224.76,8.36872509]
[1733136072324,5.0,224.78,224.77,4.449]
[1733136074020,1.1118,224.85,224.69,2.41162823]
[1733136074021,5.0,224.76,224.69,2.41162823]
[1733136074316,5.0,224.76,224.74,8.36872509]
[1733136074616,5.0,224.76,224.75,8.36872509]
[1733136075825,5.0,224.8,224.75,8.36872509]
[1733136076019,10.0,224.83,224.79,8.36872509]
[1733136076221,5.0,224.83,224.82,8.36872509]
[1733136076419,10.0,224.83,224.82,8.36872509]
[1733136076821,5.0,224.81,224.74,23.776884]
[1733136077022,10.0,224.83,224.8,8.36872509]
[1733136077231,5.0,224.79,224.74,23.776884]
[1733136077523,5.0,224.79,224.69,72.41162823]
[1733136077927,5.0,224.79,224.78,8.36872509]
[1733136079219,5.0,224.8,224.78,8.36872509]
[1733136079506,5.0,224.8,224.79,8.36872509]
[1733136079727,10.0,224.74,224.63,101.5923]
[1733136080029,10.0,224.74,224.73,8.36872509]
[1733136081125,5.0,224.71,224.64,4.75274537]
[1733136081323,5.0,224.71,224.7,8.36872509]
[1733136082303,5.0,224.78,224.7,8.36872509]
[1733136082498,5.0,224.78,224.77,8.36872509]
[1733136082709,30.0527,224.89,224.77,8.36872509]
[1733136082710,10.0,224.86,224.77,8.36872509]
[1733136083008,10.0,224.86,224.85,8.36872509]
[1733136083418,5.0,224.84,224.77,23.776884]
[1733136083723,5.0,224.84,224.83,8.36872509]
[1733136084026,10.0,224.88,224.83,8.36872509]
[1733136084331,5.0,224.88,224.87,8.36872509]
[1733136084502,5.0,224.95,224.87,8.36872509]
[1733136084703,10.0,224.97,224.94,8.36872509]
[1733136085006,10.0,224.97,224.96,8.36872509]
[1733136085007,5.0,224.97,224.96,8.36872509]
[1733136085204,5.0,224.97,224.96,12.81772509]
[1733136085421,5.0,224.98,224.96,8.36872509]
[1733136085727,5.0,225.0,224.97,13.04852996]
[1733136085909,5.0,225.0,224.96,4.449]
[1733136085910,5.0,225.0,224.98,13.04852996]
[1733136086112,5.0,225.0,224.96,4.449]
[1733136086113,5.0,224.98,224.97,13.04852996]
[1733136086414,5.0,224.97,224.96,17.49752996]
[1733136086620,5.0,225.0,224.96,17.49752996]
[1733136086802,5.0,224.97,224.96,17.49752996]
[1733136087005,5.0,224.97,224.95,4.449]
[1733136087219,5.0,224.98,224.95,17.49752996]
[1733136088008,10.0,224.98,224.94,13.04852996]
[1733136088408,10.0,224.98,224.95,13.04852996]
[1733136088817,5.0,224.98,224.95,13.04852996]
[1733136089004,10.0,224.98,224.95,13.04852996]
[1733136089205,10.0,224.98,224.96,13.04852996]
[1733136089402,2.21916601,225.05,224.96,13.04852996]
[1733136089403,10.0,225.01,224.97,13.04852996]
[1733136089608,10.0,225.01,224.89,70.0]
[1733136089609,10.0,225.01,225.0,13.04852996]
[1733136089826,10.0,225.01,224.98,13.04852996]
[1733136090029,5.0,224.99,224.96,13.04852996]
[1733136090331,5.0,224.97,224.96,13.04852996]
[1733136091106,10.0,224.99,224.96,13.04852996]
[1733136091407,10.0,224.99,224.9,4.449]
[1733136091408,10.0,224.99,224.97,13.04852996]
[1733136091608,10.0,224.99,224.98,13.04852996]
[1733136091828,5.0,224.99,224.98,13.04852996]
[1733136092035,10.0,224.99,224.97,13.04852996]
[1733136092434,5.0,224.99,224.97,13.04852996]
[1733136092736,10.0,224.99,224.98,13.04852996]
[1733136092922,5.0,224.99,224.98,13.04852996]
[1733136093128,10.0,225.01,224.97,13.04852996]
[1733136093433,5.0,224.98,224.97,13.04852996]
[1733136093639,5.0,224.97,224.95,13.04852996]
[1733136093833,5.0,224.96,224.94,13.04852996]
[1733136094926,5.0,224.96,224.95,13.04852996]
[1733136095431,5.0,224.96,224.94,13.04852996]
[1733136095740,10.0,224.91,224.9,13.04852996]
[1733136096041,5.0,224.89,224.88,13.04852996]
[1733136096216,10.0,224.89,224.88,13.04852996]
[1733136096841,5.0,224.89,224.88,13.04852996]
[1733136099256,10.0,224.91,224.88,13.04852996]
[1733136099457,5.0,224.91,224.9,13.04852996]
[1733136099764,10.0,224.95,224.9,13.04852996]
[1733136099966,10.0,224.95,224.93,13.04852996]
[1733136100261,10.0,224.93,224.92,17.49752996]
[1733136101855,5.0,224.93,224.92,17.49752996]
[1733136102467,10.0,224.93,224.92,4.449]
[1733136102759,10.0,224.93,224.91,17.49752996]
[1733136102959,10.0,224.93,224.92,13.04852996]
[1733136103163,5.0,224.93,224.92,17.49752996]
[1733136103843,10.0,224.93,224.92,4.449]
[1733136104042,10.0,224.93,224.9,4.449]
[1733136104341,5.0,224.91,224.9,4.449]
[1733136105376,5.0,224.91,224.9,17.49752996]
[1733136105666,5.0,224.91,224.9,4.449]
[1733136106639,5.0,224.91,224.9,17.49752996]
[1733136107860,10.0,224.91,224.9,4.449]
[1733136108257,10.0,224.91,224.9,17.49752996]
[1733136108258,5.0,224.91,224.9,17.49752996]
[1733136108737,10.0,224.91,224.9,17.49752996]
[1733136109599,10.0,224.91,224.9,4.449]
[1733136110554,5.0,224.88,224.87,4.449]
[1733136111066,5.0,224.88,224.87,17.49752996]
[1733136116356,10.0,224.88,224.86,17.49752996]
[1733136116671,10.0,224.88,224.84,4.449]
[1733136117178,5.0,224.86,224.84,4.449]
[1733136117679,5.0,224.86,224.85,17.49752996]
[1733136119374,5.0,224.88,224.85,17.49752996]
[1733136119675,5.0,224.88,224.87,17.49752996]
[1733136120176,5.0,224.88,224.87,4.449]
[1733136120673,10.0,224.88,224.85,4.449]
[1733136120979,5.0,224.86,224.85,4.449]
[1733136121181,10.0,224.86,224.85,4.449]
[1733136121878,10.0,224.86,224.82,4.449]
[1733136122052,10.0,224.84,224.82,4.449]
[1733136122756,10.0,224.84,224.81,4.449]
[1733136123069,10.0,224.82,224.81,17.49752996]
[1733136124072,10.0,224.84,224.81,17.49752996]
[1733136124253,10.0,224.86,224.84,4.449]
[1733136124454,5.0,224.86,224.84,4.449]
[1733136124757,10.0,224.88,224.85,17.49752996]
[1733136124973,5.0,224.86,224.85,17.49752996]
[1733136125287,10.0,224.88,224.87,4.449]
[1733136125651,5.0,224.88,224.87,4.449]
[1733136125956,5.0,224.88,224.87,17.49752996]
[1733136126276,5.0,224.87,224.86,17.49752996]
[1733136127064,5.0,224.87,224.82,12.734]
[1733136127377,5.0,224.87,224.86,4.449]
[1733136127875,5.0,224.87,224.86,17.49752996]
[1733136130885,10.0,224.92,224.86,17.49752996]
[1733136131184,5.0,224.92,224.91,17.49752996]
[1733136131366,5.0,224.92,224.91,4.449]
[1733136131757,10.0,224.92,224.91,4.449]
[1733136131950,10.0,224.92,224.85,30.3124]
[1733136131951,10.0,224.92,224.89,4.449]
[1733136132168,5.0,224.9,224.89,4.449]
[1733136132678,5.0,224.9,224.89,17.49752996]
[1733136133079,5.0,224.92,224.89,17.49752996]
[1733136133377,5.0,224.92,224.91,17.49752996]
[1733136133769,5.0,224.95,224.91,17.49752996]
[1733136134078,5.0,224.92,224.91,4.449]
[1733136134281,5.0,224.92,224.87,4.449]
[1733136134661,5.0,224.94,224.87,4.449]
[1733136134978,5.0,224.92,224.87,4.449]
[1733136135158,5.0,224.92,224.91,17.49752996]
[1733136136966,10.0,224.92,224.9,4.449]
[1733136137287,10.0,224.92,224.85,30.3124]
[1733136137288,10.0,224.88,224.86,13.04852996]
[1733136137468,10.0,224.88,224.83,13.04852996]
[1733136137469,5.0,224.86,224.83,13.04852996]
[1733136137658,10.0,224.84,224.83,13.04852996]
[1733136137965,10.0,224.84,224.83,17.49752996]
[1733136139190,10.0,224.82,224.81,17.49752996]
[1733136140180,10.0,224.82,224.81,13.04852996]
[1733136142379,5.0,224.86,224.81,13.04852996]
[1733136142589,5.0,224.86,224.85,13.04852996]
[1733136143072,10.0,224.86,224.85,13.04852996]
[1733136143280,10.0,224.86,224.84,13.04852996]
[1733136143779,5.0,224.89,224.85,13.04852996]
[1733136143974,5.0,224.89,224.88,13.04852996]
[1733136144471,5.0,224.89,224.87,13.04852996]
[1733136144857,5.0,224.88,224.87,13.04852996]
[1733136145060,5.0,224.86,224.79,30.3124]
[1733136145258,5.0,224.85,224.84,13.04852996]
[1733136145669,5.0,224.85,224.79,30.3124]
[1733136145875,5.0,224.83,224.82,13.04852996]
[1733136146382,5.0,224.85,224.82,13.04852996]
[1733136146560,5.0,224.82,224.8,13.04852996]
[1733136146756,5.0,224.81,224.8,13.04852996]
[1733136148682,5.0,224.81,224.79,13.04852996]
[1733136148867,5.0,224.8,224.75,4.449]
[1733136149070,5.0,224.8,224.79,13.04852996]
[1733136149276,5.0,224.79,224.78,13.04852996]
[1733136149474,5.0,224.79,224.77,13.04852996]
[1733136149975,5.0,224.79,224.78,13.04852996]
[1733136150365,5.0,224.78,224.76,13.04852996]
[1733136152473,5.0,224.76,224.74,13.04852996]
[1733136153494,5.0,224.76,224.75,13.04852996]
[1733136160303,5.0,224.76,224.75,17.49752996]
[1733136160602,5.0,224.76,224.75,4.449]
[1733136160800,5.0,224.7,224.66,12.5646]
[1733136161801,5.0,224.7,224.69,17.49752996]
[1733136162882,5.0,224.68,224.67,4.449]
[1733136164001,5.0,224.68,224.65,4.449]
[1733136164202,5.0,224.66,224.65,4.449]
[1733136165998,5.0,224.66,224.65,17.49752996]
[1733136169309,5.0,224.67,224.65,13.04852996]
[1733136169602,5.0,224.67,224.64,2.41798082]
[1733136169603,5.0,224.67,224.66,13.04852996]
[1733136170107,5.0,224.67,224.66,17.49752996]
[1733136173688,5.0,224.71,224.66,17.49752996]
[1733136173895,5.0,224.71,224.7,17.49752996]
[1733136176692,5.0,224.69,224.65,23.776884]
[1733136177009,5.0,224.69,224.68,17.49752996]
[1733136178086,5.0,224.67,224.66,13.04852996]
[1733136178311,10.0,224.67,224.66,17.49752996]
[1733136178693,5.0,224.67,224.66,17.49752996]
[1733136180294,10.0,224.69,224.66,17.49752996]
[1733136180493,5.0,224.69,224.68,13.04852996]
[1733136180704,5.0,224.69,224.68,17.49752996]
[1733136180910,10.0,224.71,224.68,17.49752996]
[1733136181108,5.0,224.69,224.68,4.449]
[1733136181315,5.0,224.71,224.68,4.449]
[1733136181610,5.0,224.69,224.65,4.449]
[1733136181907,5.0,224.69,224.67,4.449]
[1733136182311,10.0,224.71,224.69,4.449]
[1733136182513,10.0,224.71,224.69,17.49752996]
[1733136183118,10.0,224.71,224.69,4.449]
[1733136184216,10.0,224.71,224.7,4.449]
[1733136186414,5.0,224.69,224.68,4.449]
[1733136190421,5.0,224.65,224.64,2.41798082]
[1733136190619,5.0,224.65,224.64,10.7921344]
[1733136191320,5.0,224.65,224.64,15.2411344]
[1733136191922,10.0,224.65,224.64,2.41798082]
[1733136192325,10.0,224.65,224.64,6.86698082]
[1733136192797,10.0,224.65,224.64,2.41798082]
[1733136193611,10.0,224.65,224.64,6.86698082]
[1733136193925,10.0,224.65,224.64,2.41798082]
[1733136195606,11.1128,224.65,224.64,2.41798082]
[1733136200701,10.0,224.65,224.64,2.41798082]
[1733136201417,10.0,224.65,224.64,6.86698082]
[1733136201629,10.0,224.65,224.64,10.7921344]
[1733136202202,5.0,224.68,224.64,10.7921344]
[1733136202407,5.0,224.7,224.68,4.449]
[1733136202619,5.0,224.7,224.69,12.82315358]
[1733136202922,5.0,224.7,224.69,8.37415358]
[1733136203124,5.0,224.7,224.68,8.37415358]
[1733136203432,5.0,224.7,224.69,8.37415358]
[1733136203615,1.1122,224.77,224.65,23.776884]
[1733136203616,5.0,224.67,224.66,4.449]
[1733136203924,5.0,224.67,224.66,17.53130512]
[1733136204422,5.0,224.7,224.66,17.53130512]
[1733136204632,5.0,224.7,224.69,4.449]
[1733136204806,5.0,224.66,224.64,6.86698082]
[1733136205122,5.0,224.67,224.66,4.449]
[1733136205325,5.0,224.67,224.66,17.53130512]
[1733136205532,5.0,224.68,224.66,17.53130512]
[1733136205822,5.0,224.71,224.67,17.53130512]
[1733136206124,5.0,224.72,224.71,4.449]
[1733136206814,5.0,224.72,224.71,17.53130512]
[1733136208128,5.0,224.72,224.71,4.449]
[1733136208620,5.0,224.72,224.71,17.53130512]
[1733136208821,5.0,224.72,224.71,4.449]
[1733136209329,5.0,224.72,224.71,17.53130512]
[1733136209716,5.0,224.73,224.71,13.08230512]
[1733136209915,10.0,224.75,224.72,13.08230512]
[1733136210239,5.0,224.73,224.68,0.12549]
[1733136210531,5.0,224.73,224.68,4.57449]
[1733136210731,5.0,224.73,224.72,17.53130512]
[1733136211232,5.0,224.77,224.73,93.902374]
[1733136211437,5.0,224.77,224.76,17.53130512]
[1733136211615,10.0,224.77,224.76,17.53130512]
[1733136211818,10.0,224.77,224.75,13.08230512]
[1733136212215,10.0,224.75,224.73,36.85918912]
[1733136212431,5.0,224.73,224.72,48.12330512]
[1733136212612,10.0,224.73,224.72,4.449]
[1733136213213,10.0,224.73,224.72,17.53130512]
[1733136213535,5.0,224.73,224.72,17.53130512]
[1733136214624,5.0,224.73,224.72,12.58230512]
[1733136214934,5.0,224.76,224.72,12.58230512]
[1733136215129,5.0,224.76,224.75,13.08230512]
[1733136215635,5.0,224.76,224.75,17.53130512]
[1733136216010,5.0,224.79,224.75,13.08230512]
[1733136216210,5.0,224.79,224.73,13.08230512]
[1733136216211,10.0,224.83,224.78,13.08230512]
[1733136216411,10.0,224.83,224.82,17.53130512]
[1733136216715,5.0,224.83,224.82,13.08230512]
[1733136217308,5.0,224.85,224.82,13.08230512]
[1733136217521,10.0,224.85,224.84,4.449]
[1733136217927,10.0,224.85,224.82,13.08230512]
[1733136218133,5.0,224.83,224.82,13.08230512]
[1733136218334,10.0,224.83,224.82,13.08230512]
[1733136218532,5.0,224.83,224.82,17.53130512]
[1733136218841,5.0,224.85,224.82,17.53130512]
[1733136218842,5.0,224.85,224.82,13.08230512]
[1733136219128,5.0,224.85,224.84,13.20779512]
[1733136219534,5.0,224.85,224.84,17.65679512]
[1733136219734,10.0,224.89,224.85,0.12549]